fUSD/lending_fUSD_20241220
["ID","MTS","AMOUNT","RATE_DAILY","PERIOD"]
[346130574,1734731451280,-2626.45,0.00023835,4]
[346130575,1734731451293,-500.0,0.00023835,4]
[346130576,1734731451302,-500.0,0.00023835,4]
[346130577,1734731451312,-500.0,0.00023835,4]
[346130578,1734731451321,-500.0,0.00023835,4]
[346130579,1734731451331,-500.0,0.00023835,4]
[346130580,1734731451339,-500.0,0.00023835,4]
[346130581,1734731451349,-150.0,0.00023836,5]
[346130582,1734731451358,-999.0,0.00023863,7]
[346130583,1734731451367,-999.0,0.00023863,7]
[346130584,1734731451377,-999.0,0.00023863,7]
[346130585,1734731451385,-999.0,0.00023863,7]
[346130586,1734731451394,-999.0,0.00023863,7]
[346130587,1734731451403,-999.0,0.00023863,7]
[346130588,1734731451412,-999.0,0.00023863,7]
[346130589,1734731451422,-999.0,0.00023863,7]
[346130590,1734731451431,-999.0,0.00023863,7]
[346130591,1734731451440,-999.0,0.00023863,7]
[346130592,1734731451450,-999.0,0.00023863,7]
[346130593,1734731451461,-999.0,0.00023863,7]
[346130594,1734731451470,-999.0,0.00023863,7]
[346130595,1734731451479,-999.0,0.00023863,7]
[346130596,1734731451488,-999.0,0.00023863,7]
[346130597,1734731451497,-999.0,0.00023863,7]
[346130598,1734731451507,-999.0,0.00023863,7]
[346130599,1734731451516,-999.0,0.00023863,7]
[346130600,1734731451525,-999.0,0.00023863,7]
[346130601,1734731451534,-999.0,0.00023863,7]
[346130602,1734731451547,-999.0,0.00023863,7]
[346130603,1734731451555,-999.0,0.00023863,7]
[346130604,1734731451565,-392.81401097,0.00023863,7]
[346130605,1734731451574,-152.74,0.00023878,2]
[346130606,1734731451583,-150.0,0.00023879,2]
[346130607,1734731451592,-451.47447123,0.0002388,2]
[346130608,1734731451602,-320000.0,0.0002388,60]
[346130609,1734731451612,-50213.75813456,0.0002388,2]
[346130610,1734731451620,-151.0,0.0002388,7]
[346130611,1734731451629,-151.0,0.0002388,7]
[346130612,1734731451638,-151.0,0.0002388,7]
[346130613,1734731451647,-151.0,0.0002388,7]
[346130614,1734731451657,-151.0,0.0002388,7]
[346130615,1734731451666,-151.0,0.0002388,7]
[346130616,1734731451675,-315.829266,0.0002388,7]
[346130617,1734731451684,-151.0,0.0002388,7]
[346130618,1734731451693,-315.82926,0.0002388,7]
[346130619,1734731451702,-173.643988,0.0002388,7]
[346130620,1734731451712,-173.643984,0.0002388,7]
[346130621,1734731451722,-1848.395408,0.0002388,7]
[346130622,1734731451731,-1848.395402,0.0002388,7]
[346130623,1734731451740,-234.122105,0.00023897,2]
[346130624,1734731451749,-222.122105,0.00023898,2]
[346130625,1734731451760,-150.0,0.00023899,2]
[346130626,1734731451769,-150.0,0.00023899,2]
[346130627,1734731451779,-150.0,0.00023899,2]
[346130628,1734731451790,-11793.65716812,0.000239,2]
[346130629,1734731451799,-14072.13995197,0.000239,2]
[346130630,1734731451808,-86773.66696689,0.000239,2]
[346130631,1734731451818,-3500928.85974092,0.000239,2]
[346130632,1734731451827,-151.0,0.000239,7]
[346130633,1734731451837,-151.0,0.000239,7]
[346130634,1734731451847,-151.0,0.000239,7]
[346130635,1734731451856,-151.0,0.000239,7]
[346130636,1734731451866,-240.9707068,0.000239,2]
[346130637,1734731451874,-240.85759034,0.000239,2]
[346130638,1734731451883,-160.57172689,0.000239,2]
[346130639,1734731451893,-4050.0,0.000239,120]
[346130640,1734731451902,-160.52622159,0.000239,2]
[346130641,1734731451912,-2339.61107065,0.000239,2]
[346130642,1734731451921,-341.7207299,0.000239,2]
[346130643,1734731451931,-232.30531152,0.00023947,2]
[346130644,1734731451940,-88005.09712971,0.00023948,3]
[346130645,1734731451950,-2678.0,0.00023979,40]
[346130646,1734731451959,-200.0,0.0002398,2]
[346130647,1734731451968,-508.8268334,0.00023984,2]
[346130648,1734731451978,-565.669435,0.00023984,2]
[346130649,1734731451987,-622.5120366,0.00023984,2]
[346130650,1734731451996,-679.3546382,0.00023984,2]
[346130651,1734731452006,-736.1972398,0.00023984,2]
[346130652,1734731452015,-470.5406127,0.00023984,2]
[346130653,1734731452024,-525.1184626,0.00023984,2]
[346130654,1734731452034,-579.6963125,0.00023984,2]
[346130655,1734731452044,-634.2741624,0.00023984,2]
[346130656,1734731452053,-688.8520123,0.00023984,2]
[346130657,1734731452063,-193.415215,0.00023984,2]
[346130658,1734731452072,-206.1678665,0.00023984,2]
[346130659,1734731452081,-218.920518,0.00023984,2]
[346130660,1734731452091,-231.6731696,0.00023984,2]
[346130661,1734731452100,-244.4258211,0.00023984,2]
[346130662,1734731452111,-171.862411,0.00023984,2]
[346130663,1734731452121,-183.1939986,0.00023984,2]
[346130664,1734731452130,-194.5255861,0.00023984,2]
[346130665,1734731452140,-205.8571736,0.00023984,2]
[346130666,1734731452149,-217.1887612,0.00023984,2]
[346130667,1734731452159,-1833.8121851,0.00023984,2]
[346130668,1734731452168,-1961.1310065,0.00023984,2]
[346130669,1734731452178,-2088.4498279,0.00023984,2]
[346130670,1734731452188,-2215.7686494,0.00023984,2]
[346130671,1734731452199,-2343.0874708,0.00023984,2]
[346130672,1734731452209,-759.3188199,0.00023984,2]
[346130673,1734731452219,-812.0371833,0.00023984,2]
[346130674,1734731452228,-864.7555467,0.00023984,2]
[346130675,1734731452238,-917.4739102,0.00023984,2]
[346130676,1734731452247,-970.1922736,0.00023984,2]
[346130677,1734731452257,-4342.6132765,0.00023984,2]
[346130678,1734731452267,-4659.8624644,0.00023984,2]
[346130679,1734731452276,-4977.1116524,0.00023984,2]
[346130680,1734731452286,-5294.3608403,0.00023984,2]
[346130681,1734731452296,-5611.6100282,0.00023984,2]
[346130682,1734731452306,-1601.00770801,0.00023988,2]
[346130683,1734731452316,-12915.25313204,0.00023996,14]
[346130684,1734731452325,-5636.31426138,0.00023996,3]
[346130685,1734731452335,-3239287.29252551,0.00024,5]
[346130686,1734731452346,-50419.52472763,0.00024,2]
[346130687,1734731452356,-1812.14242681,0.00024,25]
[346130688,1734731452366,-3097772.266487,0.00024,5]
[346130689,1734731452375,-300.00488475,0.00024,5]
[346130690,1734731452385,-7626.73848,0.00024,30]
[346130691,1734731452395,-1500.0,0.00024,2]
[346130692,1734731452404,-313974.57098811,0.00024,2]
[346130693,1734731452413,-567.14596118,0.00024,5]
[346130694,1734731452423,-23811.42212127,0.00024,2]
[346130695,1734731452432,-30172.11475918,0.00024,2]
[346130696,1734731452441,-975.24405875,0.00024,2]
[346130697,1734731452451,-210.04419824,0.00024,30]
[346130698,1734731452461,-33145353.3093212,0.00024,5]
[346130699,1734731452628,-21957.12564397,0.00024,5]
[346130700,1734731452640,-8397.33288894,0.00024,5]
[346130701,1734731452651,-932.79988,0.00024,5]
[346130702,1734731452663,-13041.92018791,0.00024,5]
[346130703,1734731452767,-500.0,0.00021917,4]
[346130704,1734731452776,-500.0,0.00021917,4]
[346130705,1734731452788,-500.0,0.00021917,4]
[346130706,1734731452798,-500.0,0.00021917,4]
[346130707,1734731452808,-383.4,0.00022191,4]
[346130708,1734731452955,-500.0,0.00022191,4]
[346130709,1734731452965,-443.38609596,0.00022341,2]
[346130710,1734731452974,-443.38609596,0.00022361,2]
[346130711,1734731452983,-443.38609596,0.00022361,2]
[346130712,1734731452992,-443.38609596,0.00022363,2]
[346130713,1734731453001,-443.38609596,0.00022364,2]
[346130714,1734731453010,-443.38609596,0.00022392,2]
[346130715,1734731453019,-500.0,0.00022465,4]
[346130716,1734731453028,-500.0,0.00022739,4]
[346130717,1734731453040,-500.0,0.00023013,4]
[346130718,1734731453049,-151.0,0.000238,7]
[346130719,1734731453059,-151.0,0.000238,7]
[346130720,1734731453068,-151.0,0.000238,7]
[346130721,1734731453077,-151.0,0.000238,7]
[346130722,1734731453087,-2890.68342424,0.00024,5]
[346130723,1734731453108,-500.0,0.00023287,4]
[346130724,1734731453119,-151.0,0.000238,7]
[346130725,1734731453128,-1990.93454363,0.00024,5]
[346130726,1734731453139,-1051.3558125,0.00024,5]
[346130727,1734731453150,-2178.0105047,0.00024,5]
[346130728,1734731453161,-963.33,0.00024,5]
[346130729,1734731453172,-669.4,0.00024,5]
[346130730,1734731453185,-662.960001,0.00024,5]
[346130731,1734731453299,-370.04688269,0.00021917,4]
[346130732,1734731453315,-129.95311731,0.00021917,4]
[346130733,1734731453324,-432.44356269,0.00021917,4]
[346130734,1734731453335,-67.55643731,0.00021917,4]
[346130735,1734731453344,-352.25443794,0.00021917,4]
[346130736,1734731453355,-147.74556206,0.00021917,4]
[346130737,1734731453364,-500.0,0.00021917,4]
[346130738,1734731453374,-96.75443794,0.00021917,4]
[346130739,1734731453385,-403.24556206,0.00021917,4]
[346130740,1734731453394,-1000.0,0.00021917,4]
[346130741,1734731453403,-500.0,0.00022191,4]
[346130742,1734731453411,-500.0,0.00022191,4]
[346130743,1734731453420,-421.04,0.00022191,4]
[346130744,1734731453429,-594.78,0.00022465,4]
[346130745,1734731453438,-500.0,0.00022465,4]
[346130746,1734731453447,-290.65,0.00022739,4]
[346130747,1734731453455,-241.12,0.00023561,4]
[346130748,1734731453465,-151.0,0.000238,7]
[346130749,1734731453474,-151.0,0.000238,7]
[346130750,1734731453483,-151.0,0.000238,7]
[346130751,1734731453491,-151.0,0.000238,7]
[346130752,1734731453500,-151.0,0.000238,7]
[346130753,1734731453509,-151.0,0.000238,7]
[346130754,1734731453518,-150.91516385,0.00024,5]
[346130755,1734731453530,-42793.0453787,0.00024,5]
[346130756,1734731453544,-919.97299999,0.00024,5]
[346130757,1734731453555,-6672.71002478,0.00024,5]
[346130758,1734731453566,-913.07358999,0.00024,5]
[346130759,1734731453576,-764.57707,0.00024,5]
[346130760,1734731453591,-500.0,0.00021917,4]
[346130761,1734731453600,-16570.2222918,0.00024,5]
[346130762,1734731799751,158.09,0.00021455,30]
[346130763,1734732096243,217.27,0.00010137,2]
[346130789,1734732631714,-429.90571219,0.00013,2]
[346130790,1734732631726,-20.09428781,0.00013,2]
[346130791,1734732631735,-500.0,0.00015,2]
[346130792,1734732631744,-166.83,0.00015567,2]
[346130793,1734732631753,-164.94,0.0001662,2]
[346130794,1734732631762,-217.27,0.00016813,2]
[346130795,1734732631770,-550.0,0.00017,2]
[346130796,1734732631779,-1018.2,0.00017542,2]
[346130797,1734732631788,-1056.0,0.00018506,2]
[346130798,1734732631797,-600.0,0.00019,2]
[346130799,1734732631806,-174.71,0.00019459,2]
[346130800,1734732631816,-250.0,0.00019459,2]
[346130801,1734732631825,-754.12,0.00019459,2]
[346130802,1734732631834,-1000.0,0.00019459,2]
[346130803,1734732631844,-164.86,0.00019459,2]
[346130804,1734732631853,-250.0,0.00019459,2]
[346130805,1734732632048,-441.7969123,0.00019805,2]
[346130806,1734732632060,-550.62852736,0.00019805,2]
[346130807,1734732632073,-25.77456034,0.00019805,2]
[346130808,1734732632082,-166.03,0.00020043,2]
[346130809,1734732632092,-174.71,0.00020757,2]
[346130810,1734732632102,-194.58,0.0002079,2]
[346130811,1734732632111,-250.0,0.00020967,2]
[346130812,1734732632120,-650.0,0.00021,2]
[346130813,1734732632129,-2513.0,0.00021053,2]
[346130814,1734732632139,-500.0,0.00021064,2]
[346130815,1734732632149,-194.58,0.0002156,2]
[346130816,1734732632159,-150.0,0.000216,4]
[346130817,1734732632169,-150.0,0.000216,4]
[346130818,1734732632178,-150.0,0.000216,4]
[346130819,1734732632191,-150.0,0.000216,4]
[346130820,1734732632200,-500.0,0.00021616,2]
[346130821,1734732632209,-4421.2967,0.00021817,2]
[346130822,1734732632219,-429.46647434,0.00021817,2]
[346130823,1734732632239,-838.52312566,0.00021817,2]
[346130824,1734732632249,-1661.43944286,0.00021817,2]
[346130825,1734732632261,-3427.08347967,0.00021817,2]
[346130826,1734732632272,-1690.00237747,0.00021817,2]
[346130828,1734732632282,-3739.37138966,0.00021817,2]
[346130831,1734732632299,-1195.71554068,0.00021817,2]
[346130833,1734732632311,-64.91306966,0.00021817,2]
[346130835,1734732632321,-1333.65524977,0.00021817,2]
[346130837,1734732632333,-1166.34475023,0.00021817,2]
[346130839,1734732632343,-161.22684004,0.00021817,2]
[346130841,1734732632353,-698.06994685,0.00021817,2]
[346130843,1734732632363,-260.43755935,0.00021892,2]
[346130846,1734732632380,-493.68244065,0.00021892,2]
[346130848,1734732632391,-409.70458996,0.00021892,2]
[346130862,1734732637563,-200.0,0.00021405,2]
[346130863,1734732637573,-590.29541004,0.00021892,2]
[346130864,1734732637582,-157.49289711,0.00021916,2]
[346130865,1734732637594,-342.50710289,0.00021916,2]
[346130866,1734732637603,-500.0,0.00021916,2]
[346130867,1734732637614,-500.0,0.00021916,2]
[346130868,1734732637623,-134.96289711,0.00021916,2]
[346130869,1734732637634,-365.03710289,0.00021916,2]
[346130870,1734732637644,-169.28498551,0.00021916,2]
[346130871,1734732637653,-500.0,0.00021916,2]
[346130872,1734732637662,-500.0,0.00021916,2]
[346130873,1734732637671,-500.0,0.00021916,2]
[346130874,1734732637681,-352.13309886,0.00021916,2]
[346130875,1734732637691,-500.0,0.00021916,2]
[346130876,1734732637700,-500.0,0.00021916,2]
[346130877,1734732637709,-500.0,0.00021916,2]
[346130878,1734732637718,-500.0,0.00021916,2]
[346130879,1734732637727,-500.0,0.00021916,2]
[346130880,1734732637736,-212.48432711,0.00021916,2]
[346130881,1734732637745,-500.0,0.00021916,2]
[346130882,1734732637754,-500.0,0.00021916,2]
[346130883,1734732637763,-60.53421614,0.00021916,2]
[346130884,1734732637774,-439.46578386,0.00021916,2]
[346130885,1734732637783,-500.0,0.00021916,2]
[346130886,1734732637792,-500.0,0.00021916,2]
[346130887,1734732637801,-497.78421614,0.00021916,2]
[346130888,1734732637813,-2.21578386,0.00021916,2]
[346130889,1734732637821,-500.0,0.00021916,2]
[346130890,1734732637830,-138.23610914,0.00021916,2]
[346130891,1734732637845,-361.76389086,0.00021916,2]
[346130892,1734732637854,-500.0,0.00021916,2]
[346130893,1734732637863,-500.0,0.00021916,2]
[346130894,1734732637873,-500.0,0.00021916,2]
[346130895,1734732637882,-500.0,0.00021916,2]
[346130896,1734732637891,-500.0,0.00021916,2]
[346130897,1734732637901,-500.0,0.00021916,2]
[346130898,1734732637910,-500.0,0.00021916,2]
[346130899,1734732637919,-500.0,0.00021916,2]
[346130900,1734732637928,-500.0,0.00021916,2]
[346130901,1734732637940,-500.0,0.00021916,2]
[346130902,1734732637950,-500.0,0.00021916,2]
[346130903,1734732637959,-500.0,0.00021916,2]
[346130904,1734732637969,-500.0,0.00021917,4]
[346130905,1734732637979,-518.80759979,0.00021917,4]
[346130906,1734732637988,-500.0,0.00021917,4]
[346130907,1734732637997,-502.78681461,0.00021917,4]
[346130908,1734732638006,-500.0,0.00021917,4]
[346130909,1734732638015,-500.0,0.00021917,4]
[346130910,1734732638025,-500.0,0.00021917,4]
[346130911,1734732638033,-500.89598542,0.00021917,4]
[346130912,1734732638043,-500.0,0.00021917,4]
[346130913,1734732638052,-500.0,0.00021917,4]
[346130914,1734732638061,-462.03186747,0.00021917,4]
[346130915,1734732638070,-504.16061208,0.00021917,4]
[346130916,1734732638079,-500.0,0.00021917,4]
[346130917,1734732638089,-500.0,0.00021917,4]
[346130918,1734732638099,-500.0,0.00021917,4]
[346130919,1734732638108,-501.38227894,0.00021917,4]
[346130920,1734732638117,-500.0,0.00021917,4]
[346130921,1734732638127,-500.44619094,0.00021917,4]
[346130922,1734732638136,-500.0,0.00021917,4]
[346130923,1734732638146,-500.0,0.00021917,4]
[346130924,1734732638155,-300.0,0.00021917,4]
[346130925,1734732638164,-500.0,0.00021917,4]
[346130926,1734732638174,-500.0,0.00021917,4]
[346130927,1734732638184,-191.99688244,0.00021917,4]
[346130928,1734732638193,-500.0,0.00021917,4]
[346130929,1734732638203,-500.0,0.00021917,4]
[346130930,1734732638212,-500.0,0.00021917,4]
[346130931,1734732638221,-500.0,0.00021917,4]
[346130932,1734732638231,-500.0,0.00021917,4]
[346130933,1734732638240,-500.43167777,0.00021917,4]
[346130934,1734732638250,-500.0,0.00021917,4]
[346130935,1734732638261,-500.0,0.00021917,4]
[346130936,1734732638270,-500.0,0.00021917,4]
[346130937,1734732638280,-500.0,0.00021917,4]
[346130938,1734732638289,-500.0,0.00021917,4]
[346130939,1734732638299,-500.0,0.00021917,4]
[346130940,1734732638308,-534.95823189,0.00021917,4]
[346130941,1734732638317,-500.0,0.00021917,4]
[346130942,1734732638327,-500.0,0.00021917,4]
[346130943,1734732638336,-500.0,0.00021917,4]
[346130944,1734732638346,-500.0,0.00021917,4]
[346130945,1734732638355,-500.0,0.00021917,4]
[346130946,1734732638365,-500.0,0.00021917,4]
[346130947,1734732638375,-500.0,0.00021917,4]
[346130948,1734732638385,-500.0,0.00021917,4]
[346130949,1734732638394,-525.03785459,0.00021917,4]
[346130950,1734732638404,-500.0,0.00021917,4]
[346130951,1734732638413,-500.0,0.00021917,4]
[346130952,1734732638423,-500.0,0.00021917,4]
[346130953,1734732638433,-500.0,0.00021917,4]
[346130954,1734732638444,-503.72531405,0.00021917,4]
[346130955,1734732638457,-500.0,0.00021917,4]
[346130956,1734732638467,-500.0,0.00021917,4]
[346130957,1734732638475,-500.0,0.00021917,4]
[346130958,1734732638485,-500.0,0.00021917,4]
[346130959,1734732638495,-500.0,0.00021917,4]
[346130960,1734732638505,-500.0,0.00021917,4]
[346130961,1734732638514,-500.0,0.00021917,4]
[346130962,1734732638524,-500.0,0.00021917,4]
[346130963,1734732638534,-500.0,0.00021917,4]
[346130964,1734732638543,-266.66363675,0.00021917,4]
[346130965,1734732638552,-500.0,0.00021917,4]
[346130966,1734732638562,-500.0,0.00021917,4]
[346130967,1734732638571,-500.0,0.00021917,4]
[346130968,1734732638580,-500.0,0.00021917,4]
[346130969,1734732638590,-5000.0,0.00021917,10]
[346130970,1734732638600,-500.0,0.00021917,4]
[346130971,1734732638609,-500.0,0.00021917,4]
[346130972,1734732638619,-500.0,0.00021917,4]
[346130973,1734732638628,-502.79629369,0.00021917,4]
[346130974,1734732638639,-500.0,0.00021917,4]
[346130975,1734732638648,-500.0,0.00021917,4]
[346130976,1734732638657,-500.0,0.00021917,4]
[346130977,1734732638666,-500.0,0.00021917,4]
[346130978,1734732638675,-500.0,0.00021917,4]
[346130979,1734732638687,-500.0,0.00021917,4]
[346130980,1734732638696,-500.0,0.00021917,4]
[346130981,1734732638705,-500.0,0.00021917,4]
[346130982,1734732638715,-500.0,0.00021917,4]
[346130983,1734732638724,-500.0,0.00021917,4]
[346130984,1734732638734,-500.0,0.00021917,4]
[346130985,1734732638744,-500.0,0.00021917,4]
[346130986,1734732638753,-500.0,0.00021917,4]
[346130987,1734732638762,-500.0,0.00021917,4]
[346130988,1734732638772,-500.0,0.00021917,4]
[346130989,1734732638781,-501.5234922,0.00021917,4]
[346130990,1734732638790,-500.0,0.00021917,4]
[346130991,1734732638800,-501.00731327,0.00021917,4]
[346130992,1734732638809,-500.0,0.00021917,4]
[346130993,1734732638819,-500.0,0.00021917,4]
[346130994,1734732638827,-500.0,0.00021917,4]
[346130995,1734732638837,-500.0,0.00021917,4]
[346130996,1734732638846,-500.0,0.00021917,4]
[346130997,1734732638855,-514.32768251,0.00021917,4]
[346130998,1734732638863,-500.0,0.00021917,4]
[346130999,1734732638873,-500.0,0.00021917,4]
[346131000,1734732638882,-500.0,0.00021917,4]
[346131001,1734732638891,-500.0,0.00021917,4]
[346131002,1734732638901,-500.0,0.00021917,4]
[346131003,1734732638911,-500.0,0.00021917,4]
[346131004,1734732638920,-500.0,0.00021917,4]
[346131005,1734732638929,-500.0,0.00021917,4]
[346131006,1734732638940,-500.0,0.00021917,4]
[346131007,1734732638949,-500.0,0.00021917,4]
[346131008,1734732638959,-500.0,0.00021917,4]
[346131009,1734732638968,-39.13409476,0.00021917,4]
[346131010,1734732638985,-460.86590524,0.00021917,4]
[346131011,1734732638995,-242.24439713,0.00021917,4]
[346131012,1734732639006,-250.49,0.00021917,4]
[346131033,1734732639707,-7.26560287,0.00021917,4]
[346131035,1734732639716,-500.0,0.00021917,4]
[346131037,1734732639726,-210.43775682,0.00021917,4]
[346131048,1734732639820,-289.56224318,0.00021917,4]
[346131050,1734732639830,-500.0,0.00021917,4]
[346131052,1734732639839,-500.0,0.00021917,4]
[346131054,1734732639848,-500.0,0.00021917,4]
[346131056,1734732639858,-500.0,0.00021917,4]
[346131058,1734732639867,-500.0,0.00021917,4]
[346131060,1734732639876,-500.0,0.00021917,4]
[346131061,1734732639885,-500.0,0.00021917,4]
[346131062,1734732639894,-500.0,0.00021917,4]
[346131063,1734732639903,-501.87815099,0.00021917,4]
[346131064,1734732639912,-500.0,0.00021917,4]
[346131065,1734732639922,-500.0,0.00021917,4]
[346131066,1734732639931,-500.0,0.00021917,4]
[346131067,1734732639943,-500.0,0.00021917,4]
[346131068,1734732639952,-500.0,0.00021917,4]
[346131069,1734732639961,-500.0,0.00021917,4]
[346131070,1734732639970,-244.89713282,0.00021917,4]
[346131071,1734732639979,-500.0,0.00021917,4]
[346131072,1734732639989,-500.0,0.00021917,4]
[346131073,1734732639998,-500.0,0.00021917,4]
[346131074,1734732640008,-500.0,0.00021917,4]
[346131075,1734732640016,-500.0,0.00021917,4]
[346131076,1734732640025,-500.0,0.00021917,4]
[346131077,1734732640034,-500.0,0.00021917,4]
[346131078,1734732640043,-500.0,0.00021917,4]
[346131079,1734732640053,-500.0,0.00021917,4]
[346131080,1734732640062,-500.0,0.00021917,4]
[346131081,1734732640071,-500.0,0.00021917,4]
[346131082,1734732640080,-500.0,0.00021917,4]
[346131083,1734732640089,-500.0,0.00021917,4]
[346131084,1734732640099,-500.0,0.00021917,4]
[346131085,1734732640108,-500.0,0.00021917,4]
[346131086,1734732640117,-500.0,0.00021917,4]
[346131087,1734732640127,-500.0,0.00021917,4]
[346131088,1734732640136,-500.0,0.00021917,4]
[346131089,1734732640146,-500.0,0.00021917,4]
[346131090,1734732640155,-500.0,0.00021917,4]
[346131091,1734732640164,-500.0,0.00021917,4]
[346131092,1734732640173,-504.06032768,0.00021917,4]
[346131093,1734732640183,-529.7,0.00021917,4]
[346131094,1734732640194,-500.0,0.00021917,4]
[346131095,1734732640203,-249.90214533,0.00021917,4]
[346131096,1734732640217,-250.09785467,0.00021917,4]
[346131097,1734732640227,-500.0,0.00021917,4]
[346131098,1734732640236,-500.0,0.00021917,4]
[346131099,1734732640245,-500.0,0.00021917,4]
[346131100,1734732640254,-500.0,0.00021917,4]
[346131101,1734732640265,-500.0,0.00021917,4]
[346131102,1734732640274,-500.0,0.00021917,4]
[346131103,1734732640284,-558.36,0.00021917,4]
[346131104,1734732640293,-500.0,0.00021917,4]
[346131105,1734732640302,-518.15931993,0.00021917,4]
[346131106,1734732640311,-500.0,0.00021917,4]
[346131107,1734732640321,-500.0,0.00021917,4]
[346131108,1734732640330,-500.0,0.00021917,4]
[346131109,1734732640340,-500.0,0.00021917,4]
[346131110,1734732640349,-500.0,0.00021917,4]
[346131111,1734732640358,-213.94179659,0.00021917,4]
[346131112,1734732640370,-286.05820341,0.00021917,4]
[346131113,1734732640379,-342.75040856,0.00021917,4]
[346131114,1734732640391,-157.24959144,0.00021917,4]
[346131115,1734732640401,-500.0,0.00021917,4]
[346131116,1734732640411,-500.0,0.00021917,4]
[346131117,1734732640420,-500.0,0.00021917,4]
[346131118,1734732640429,-500.0,0.00021917,4]
[346131119,1734732640440,-590.20169151,0.00021917,4]
[346131120,1734732640450,-559.04993502,0.00021917,4]
[346131121,1734732640460,-500.0,0.00021917,4]
[346131122,1734732640470,-500.0,0.00021917,4]
[346131123,1734732640479,-500.0,0.00021917,4]
[346131124,1734732640490,-500.0,0.00021917,4]
[346131125,1734732640499,-500.0,0.00021917,4]
[346131126,1734732640508,-500.0,0.00021917,4]
[346131127,1734732640518,-500.0,0.00021917,4]
[346131128,1734732640528,-451.81560652,0.00021917,4]
[346131129,1734732640541,-48.18439348,0.00021917,4]
[346131130,1734732640550,-525.1,0.00021917,4]
[346131131,1734732640559,-100.60076221,0.00021917,4]
[346131141,1734732642634,-255.57933026,0.00021917,4]
[346131148,1734732642746,-143.81990753,0.00021917,4]
[346131149,1734732642757,-500.0,0.00021917,4]
[346131150,1734732642766,-500.0,0.00021917,4]
[346131151,1734732642776,-500.0,0.00021917,4]
[346131152,1734732642785,-500.0,0.00021917,4]
[346131153,1734732642795,-500.0,0.00021917,3]
[346131154,1734732642804,-500.0,0.00021917,4]
[346131155,1734732642813,-223.68006247,0.00021917,4]
[346131156,1734732642825,-276.31993753,0.00021917,4]
[346131157,1734732642835,-500.0,0.00021917,4]
[346131158,1734732642844,-500.0,0.00021917,4]
[346131159,1734732642853,-500.0,0.00021917,4]
[346131160,1734732642862,-500.0,0.00021917,4]
[346131161,1734732642872,-500.0,0.00021917,4]
[346131162,1734732642881,-500.0,0.00021917,4]
[346131163,1734732642890,-500.0,0.00021917,4]
[346131164,1734732642900,-501.09659118,0.00021917,4]
[346131165,1734732642909,-500.0,0.00021917,4]
[346131166,1734732642919,-500.0,0.00021917,4]
[346131167,1734732642928,-500.0,0.00021917,4]
[346131168,1734732643087,-500.0,0.00021917,4]
[346131169,1734732643097,-500.0,0.00021917,4]
[346131170,1734732643107,-500.0,0.00021917,4]
[346131171,1734732643116,-506.83352718,0.00021917,4]
[346131172,1734732643125,-500.0,0.00021917,4]
[346131173,1734732643134,-500.0,0.00021917,4]
[346131174,1734732643144,-500.0,0.00021917,4]
[346131175,1734732643153,-500.0,0.00021917,4]
[346131176,1734732643162,-500.0,0.00021917,4]